bitfinex-derivatives/quotes_ETHF0:USTF0_20250902
["timestamp","ask_amount","ask_price","bid_price","bid_amount"]
[1756822534844,0.3342,4354.0,4353.6,0.256]
[1756822535546,0.8778,4354.4,4353.6,3.4638]
[1756822535839,3.2078,4355.3,4354.1,3.2078]
[1756822536044,3.2078,4355.3,4354.2,0.256]
[1756822536045,0.8778,4354.9,4354.2,0.256]
[1756822536238,0.8778,4354.7,4354.1,3.2078]
[1756822536544,0.8778,4354.4,4353.9,0.256]
[1756822536746,1.212,4354.5,4353.9,0.256]
[1756822537040,0.8778,4353.4,4353.3,3.4638]
[1756822537340,0.8778,4353.4,4352.1,33.5039]
[1756822537642,4.0856,4352.9,4351.7,3.2078]
[1756822537843,0.8778,4352.8,4351.7,3.2078]
[1756822538144,3.2078,4352.9,4351.7,3.38532563]
[1756822538335,3.2078,4352.4,4351.7,3.38532563]
[1756822538533,0.8778,4352.3,4351.7,3.38532563]
[1756822539138,0.8778,4352.3,4351.9,0.7586]
[1756822539739,0.8786,4352.9,4352.2,3.2078]
[1756822539940,0.8786,4352.9,4352.0,0.256]
[1756822540448,0.8786,4352.4,4351.8,0.256]
[1756822540946,0.8786,4352.4,4351.9,3.2078]
[1756822541147,1.1975,4352.5,4351.9,3.2078]
[1756822541551,0.8786,4352.5,4351.9,3.2078]
[1756822542242,0.8786,4352.5,4351.9,3.4638]
[1756822542547,0.8786,4352.4,4351.9,3.2078]
[1756822542747,3.2078,4352.3,4351.7,0.43288843]
[1756822542938,0.3189,4352.5,4351.7,0.43288843]
[1756822543144,0.8786,4352.4,4351.7,0.43288843]
[1756822543653,0.8786,4351.9,4351.7,0.17688843]
[1756822543949,0.3189,4352.0,4351.4,3.38109742]
[1756822544155,1.1975,4352.0,4351.4,3.38109742]
[1756822544345,0.8786,4352.0,4351.4,3.38109742]
[1756822544544,0.8786,4352.0,4351.4,3.63709742]
[1756822544749,0.8786,4351.9,4351.4,3.63709742]
[1756822545052,0.8786,4350.9,4350.3,3.2078]
[1756822545251,0.3189,4350.5,4350.3,0.17449464]
[1756822545451,0.8786,4350.4,4350.0,1.0]
[1756822545653,0.3189,4350.5,4350.0,1.17387842]
[1756822545857,0.8786,4350.4,4350.0,1.17387842]
[1756822546156,3.7817,4350.5,4350.0,1.17387842]
[1756822546358,3.7817,4350.5,4349.0,0.8018]
[1756822546359,4.0,4350.4,4349.0,3.2078]
[1756822546656,3.5267,4350.0,4349.0,3.2078]
[1756822546860,0.8786,4350.4,4349.1,1.0568]
[1756822547055,0.8786,4350.4,4349.8,3.2078]
[1756822547361,0.8786,4350.4,4350.0,0.8018]
[1756822547653,0.3189,4351.5,4349.9,3.2078]
[1756822547654,3.2078,4350.8,4349.9,3.2078]
[1756822547858,0.8786,4350.2,4349.0,0.17853523]
[1756822548059,0.3189,4350.5,4348.5,0.8018]
[1756822548060,0.8786,4349.6,4348.5,0.8018]
[1756822548255,0.255,4350.1,4349.4,3.2078]
[1756822548459,0.8786,4350.2,4349.5,0.8018]
[1756822548761,0.8786,4350.8,4349.9,3.2078]
[1756822548966,0.8786,4350.8,4350.1,0.8018]
[1756822549263,3.2078,4350.9,4349.9,3.2078]
[1756822549459,0.8786,4350.8,4349.7,0.255]
[1756822549765,0.255,4350.7,4349.4,4.2646]
[1756822549968,0.255,4350.8,4349.4,4.0096]
[1756822550159,1.08276159,4350.7,4349.4,4.0096]
[1756822550462,0.255,4350.8,4349.4,4.0096]
[1756822550655,0.255,4350.8,4349.4,3.2078]
[1756822550656,0.20416792,4350.7,4349.4,3.2078]
[1756822550863,0.255,4350.6,4349.5,0.8018]
[1756822551060,3.2078,4350.4,4349.5,0.8018]
[1756822551257,3.4628,4350.6,4349.4,3.2078]
[1756822551462,0.8786,4350.5,4349.4,3.2078]
[1756822551866,3.2078,4350.1,4349.4,3.2078]
[1756822552069,3.2078,4350.1,4349.1,0.255]
[1756822552070,0.8786,4350.0,4349.1,0.255]
[1756822552269,1.1336,4350.0,4349.1,0.255]
[1756822552469,1.1336,4350.0,4349.0,0.8018]
[1756822552670,0.8786,4349.8,4348.9,3.2078]
[1756822552970,0.8786,4349.9,4348.9,3.2078]
[1756822553165,0.8786,4349.7,4348.9,3.2078]
[1756822553367,0.255,4350.0,4348.9,3.2078]
[1756822553668,3.2078,4349.6,4348.9,3.2078]
[1756822553861,0.8786,4349.5,4348.9,3.2078]
[1756822554258,0.8786,4349.5,4349.0,0.8018]
[1756822554458,4.0864,4350.1,4349.0,0.255]
[1756822554667,3.2078,4350.1,4349.1,0.8018]
[1756822554863,3.2078,4350.4,4349.4,0.8018]
[1756822555064,0.8786,4350.2,4349.3,3.2078]
[1756822555367,0.20428155,4350.1,4349.3,4.0096]
[1756822555765,0.20428155,4350.1,4348.8,3.2078]
[1756822555766,3.2078,4349.9,4348.8,3.2078]
[1756822555964,1.08304078,4349.8,4348.8,3.2078]
[1756822556164,0.8786,4349.1,4348.2,3.2078]
[1756822556371,0.20450275,4349.0,4348.2,3.2078]
[1756822556667,0.20450275,4349.0,4347.4,40.8]
[1756822556668,3.2078,4348.7,4347.7,3.2078]
[1756822556858,1.3367858,4348.6,4347.7,3.2078]
[1756822557061,0.2031858,4348.5,4347.7,3.2078]
[1756822558568,3.2078,4348.2,4347.4,0.8018]
[1756822558775,0.8786,4348.1,4347.2,3.2078]
[1756822558971,0.20310257,4348.0,4347.2,3.2078]
[1756822559172,1.1336,4348.1,4347.2,3.2078]
[1756822559370,0.20301314,4348.0,4347.2,3.2078]
[1756822559581,0.3189,4349.5,4347.3,0.8018]
[1756822559582,0.255,4348.3,4347.3,0.8018]
[1756822559866,4.3414,4348.3,4347.5,0.8018]
[1756822560066,4.3414,4348.3,4347.4,0.255]
[1756822560067,1.08160175,4348.2,4347.2,3.2078]
[1756822560272,0.20300175,4348.1,4347.0,0.8018]
[1756822560473,1.1336,4348.0,4347.0,0.8018]
[1756822560674,3.2078,4347.8,4347.0,0.8018]
[1756822560869,0.255,4348.1,4347.0,0.8018]
[1756822561067,0.20311627,4348.0,4347.3,0.8018]
[1756822561278,0.20311627,4347.9,4347.3,0.8018]
[1756822561469,0.8786,4348.6,4347.7,3.2078]
[1756822561674,3.2078,4348.3,4347.7,3.2078]
[1756822561869,0.8786,4348.3,4347.7,3.2078]
[1756822562070,0.20313587,4348.2,4347.7,3.2078]
[1756822562272,0.8786,4348.3,4347.7,3.2078]
[1756822562478,0.8786,4348.3,4347.0,0.17782695]
[1756822562479,0.8786,4347.9,4347.0,3.2078]
[1756822562680,0.8786,4347.7,4347.0,3.2078]
[1756822562971,0.45811021,4347.8,4346.5,3.2078]
[1756822562972,3.2078,4347.5,4346.5,3.2078]
[1756822563167,3.2078,4347.5,4345.9,0.8018]
[1756822563168,3.5267,4347.0,4346.0,3.2078]
[1756822563371,0.8786,4346.8,4346.0,4.0096]
[1756822563679,3.4628,4347.0,4346.1,0.8018]
[1756822564076,1.08180311,4346.9,4346.1,0.8018]
[1756822564274,0.8786,4346.9,4346.1,0.8018]
[1756822564582,3.2078,4347.0,4346.2,0.255]
[1756822564779,0.8786,4347.4,4346.5,4.0096]
[1756822564979,3.66587198,4347.3,4346.6,3.2078]
[1756822565174,0.20307198,4347.2,4346.6,2.7078]
[1756822565381,3.2078,4347.8,4347.1,3.2078]
[1756822565682,0.8786,4348.9,4347.6,0.8018]
[1756822565877,0.20301753,4348.8,4348.4,0.8018]
[1756822566074,0.20315985,4348.7,4348.4,0.8018]
[1756822566271,3.2078,4348.5,4347.3,0.8018]
[1756822566576,0.20315985,4348.4,4347.9,3.2078]
[1756822566778,0.20315985,4348.3,4347.9,3.2078]
[1756822566982,0.20315985,4348.2,4347.9,3.2078]
[1756822567284,0.20315985,4348.1,4347.3,0.8018]
[1756822567481,0.20315985,4348.0,4347.4,0.255]
[1756822567778,0.20315985,4347.9,4347.4,0.255]
[1756822567975,3.2078,4348.5,4347.5,0.8018]
[1756822568175,0.20896215,4348.4,4347.5,0.8018]
[1756822568371,0.20896215,4348.3,4347.5,1.1449]
[1756822568583,0.20896215,4348.2,4347.9,3.2078]
[1756822568782,0.20896215,4348.1,4348.0,0.8018]
[1756822568971,0.20896215,4348.1,4347.9,3.2078]
[1756822568972,0.20896215,4348.1,4347.0,4.0452]
[1756822569172,4.0314,4347.9,4347.0,0.8374]
[1756822569372,3.2078,4347.4,4346.6,0.255]
[1756822569580,0.8236,4347.2,4346.6,0.255]
[1756822569777,0.20896215,4347.1,4346.7,0.8374]
[1756822570080,0.20896215,4347.1,4346.6,0.255]
[1756822570081,0.20896215,4347.0,4346.6,0.255]
[1756822570277,0.20896215,4346.9,4346.6,0.255]
[1756822570580,0.20896215,4346.8,4346.4,3.2078]
[1756822570784,0.8236,4347.2,4346.4,4.0452]
[1756822570785,0.20896215,4346.7,4346.4,4.0452]
[1756822570987,0.20896215,4346.6,4346.4,4.0452]
[1756822571181,0.20896215,4346.5,4346.4,4.0452]
[1756822571483,1.03256215,4346.5,4345.9,3.2078]
[1756822571678,1.237258,4347.8,4345.9,3.2078]
[1756822571679,0.20896215,4346.4,4345.9,3.2078]
[1756822571985,0.20896215,4346.3,4346.0,0.8374]
[1756822572283,0.20896215,4346.2,4346.0,0.8374]
[1756822572485,0.20896215,4346.1,4345.4,4.3002]
[1756822572686,0.20854453,4346.0,4345.4,4.0452]
[1756822572984,0.8236,4345.8,4345.4,3.2078]
[1756822573178,0.8236,4345.6,4345.0,0.8374]
[1756822573381,0.20864043,4345.5,4345.0,0.8374]
[1756822573579,0.20864043,4345.4,4345.0,0.8374]
[1756822573780,0.20864043,4345.3,4344.9,3.2078]
[1756822573985,0.20864043,4345.2,4345.0,0.8374]
[1756822574189,0.20864043,4345.1,4345.0,0.8374]
[1756822574490,0.20864043,4345.1,4344.3,0.8374]
[1756822574681,1.03224043,4345.0,4344.3,0.8374]
[1756822574879,0.76942319,4344.9,4344.3,0.8374]
[1756822575079,0.20864043,4344.8,4344.4,0.8374]
[1756822575286,0.20864043,4344.7,4344.2,3.4628]
[1756822575482,1.03224043,4344.6,4344.3,0.8374]
[1756822575681,2.8869354,4347.3,4344.1,0.10588953]
[1756822575682,0.8236,4344.4,4344.1,0.10588953]
[1756822575890,0.8236,4344.2,4342.8,0.17500029]
[1756822576093,2.05610743,4343.7,4342.8,0.17500029]
[1756822576285,0.8236,4343.2,4342.8,0.17500029]
[1756822576485,5.46530896,4343.6,4342.8,0.17500029]
[1756822576486,4.0314,4343.0,4342.8,0.17500029]
[1756822576690,0.77000153,4342.9,4342.8,0.17500029]
[1756822576892,0.20888435,4342.9,4342.8,1.01240029]
[1756822577088,0.20888435,4342.9,4342.8,1.26740029]
[1756822577290,1.23250743,4344.5,4342.9,0.8374]
[1756822577493,0.5614194,4344.4,4343.8,0.8374]
[1756822577694,0.5614194,4344.4,4343.7,3.2078]
[1756822577695,3.2078,4344.2,4343.2,3.2078]
[1756822577992,4.0314,4343.6,4342.8,0.17500029]
[1756822578188,0.8236,4343.4,4342.8,0.17500029]
[1756822578389,0.8236,4343.0,4342.8,0.17500029]
[1756822578591,1.3850194,4342.9,4342.8,0.17500029]
[1756822579095,1.6400194,4342.9,4342.8,0.17500029]
[1756822579396,1.3850194,4342.9,4342.8,0.17500029]
[1756822580697,0.5614194,4342.9,4342.8,0.17500029]
[1756822580895,1.3850194,4342.9,4342.8,0.17500029]
[1756822581096,4.5928194,4342.9,4342.8,0.17500029]
[1756822581298,4.8478194,4342.9,4342.8,0.17500029]
[1756822581497,0.8236,4342.8,4341.6,3.38430509]
[1756822581799,0.8236,4342.8,4341.7,0.8374]
[1756822581800,0.8164194,4342.7,4341.7,0.8374]
[1756822582091,3.2078,4342.4,4341.6,3.38430509]
[1756822582290,3.2078,4342.4,4340.4,33.135]
[1756822582291,0.5614194,4342.3,4341.1,3.2078]
[1756822582492,3.2078,4341.9,4341.1,3.2078]
[1756822582693,0.8236,4341.7,4340.1,0.8374]
[1756822582893,0.8236,4341.1,4340.1,0.8374]
[1756822583094,1.0786,4341.1,4340.1,0.8374]
[1756822583493,0.8236,4341.1,4340.1,0.8374]
[1756822583690,0.255,4341.0,4340.1,0.8374]
[1756822583991,3.2078,4340.7,4340.0,3.2078]
[1756822584192,1.0786,4340.6,4339.5,0.8374]
[1756822584390,3.2078,4340.5,4339.5,0.8374]
[1756822584596,3.4628,4340.5,4339.5,0.8374]
[1756822584793,0.8236,4340.4,4339.5,0.8374]
[1756822584985,0.8236,4340.4,4339.4,3.2078]
[1756822585187,0.8236,4339.9,4338.7,0.17829096]
[1756822585389,3.5311,4340.0,4336.4,3.2078]
[1756822585390,3.5311,4339.0,4336.4,3.2078]
[1756822585595,3.2078,4337.6,4336.5,1.18]
[1756822585898,3.4628,4337.5,4336.5,1.18]
[1756822586098,3.2078,4337.0,4336.5,1.18]
[1756822586299,0.256,4336.9,4336.0,0.3426]
[1756822586494,3.2078,4336.5,4336.1,0.8374]
[1756822586694,3.2078,4336.5,4335.4,3.2078]
[1756822586895,3.2078,4336.0,4335.4,3.2078]
[1756822587088,3.2078,4336.6,4335.7,0.8374]
[1756822587293,3.2078,4336.6,4336.2,0.3426]
[1756822587595,0.256,4338.0,4336.5,3.2078]
[1756822587800,0.17,4337.9,4336.6,0.8374]
[1756822588097,0.16,4337.9,4336.6,0.8374]
[1756822588294,0.16,4337.9,4337.5,0.8374]
[1756822588495,3.2078,4337.8,4337.5,0.8374]
[1756822588702,3.2078,4337.8,4336.2,1.18]
[1756822588894,3.2078,4337.2,4336.2,1.18]
[1756822589201,3.2078,4336.7,4335.5,0.8374]
[1756822589700,36.3808,4337.2,4336.3,0.8374]
[1756822590014,0.256,4337.1,4336.3,0.8374]
[1756822590206,0.256,4337.1,4335.6,1.18]
[1756822590501,3.2078,4337.2,4335.7,0.8374]
[1756822590706,3.2078,4337.8,4337.4,0.3426]
[1756822590900,3.2078,4338.9,4337.7,3.2078]
[1756822591104,0.8236,4338.8,4337.8,0.8374]
[1756822591400,0.256,4339.4,4337.4,0.3426]
[1756822591401,3.2078,4339.4,4338.3,0.8374]
[1756822591599,3.2078,4340.2,4339.0,0.8374]
[1756822591799,3.2078,4340.2,4339.5,0.8374]
[1756822592004,3.2078,4339.6,4338.9,4.0452]
[1756822592202,3.2078,4339.6,4338.1,3.4648]
[1756822592406,3.2078,4339.6,4338.4,0.8374]
[1756822592603,3.2078,4339.6,4338.4,1.0944]
[1756822592805,3.2078,4339.6,4338.4,0.8374]
[1756822593216,3.2078,4340.1,4339.3,0.8374]
[1756822593503,3.2078,4340.7,4339.8,0.3426]
[1756822593705,3.2078,4341.4,4339.9,0.8374]
[1756822593907,3.2078,4341.3,4339.9,0.8374]
[1756822594304,3.2078,4341.3,4340.4,4.0452]
[1756822594606,3.2078,4340.6,4339.8,1.18]
[1756822594797,3.2078,4340.6,4339.8,0.3426]
[1756822594995,3.2078,4341.3,4340.2,0.8374]
[1756822595607,3.4658,4341.3,4340.5,0.8374]
[1756822595802,3.2078,4341.3,4340.5,4.0452]
[1756822596108,3.2078,4341.3,4341.1,0.8374]
[1756822596406,3.2078,4342.1,4341.2,4.0]
[1756822596600,3.4658,4342.1,4341.3,0.8374]
[1756822596797,3.2078,4343.0,4341.4,0.258]
[1756822596998,3.2078,4343.0,4341.9,0.41452]
[1756822597198,3.2078,4343.0,4342.3,0.8374]
[1756822597806,3.2078,4343.0,4342.8,0.3426]
[1756822598005,36.3908,4344.0,4342.9,0.8374]
[1756822598198,3.2078,4344.0,4343.2,0.8374]
[1756822598398,3.2078,4345.1,4343.7,3.2078]
[1756822598706,3.2078,4344.3,4343.4,40.8]
[1756822598901,0.258,4344.4,4343.4,40.8]
[1756822599104,3.2078,4345.1,4343.8,3.2078]
[1756822599307,3.2078,4345.1,4343.9,0.258]
[1756822599508,3.2078,4345.1,4344.0,0.7966]
[1756822599905,3.2078,4345.1,4343.9,0.7966]
[1756822600104,3.2078,4344.5,4344.0,0.258]
[1756822600304,0.8099,4344.4,4343.5,1.0546]
[1756822600607,3.2078,4344.5,4343.6,0.7966]
[1756822601002,3.2078,4344.1,4343.6,0.7966]
[1756822601211,3.2078,4344.1,4343.5,0.7966]
[1756822601610,3.2078,4344.1,4343.5,1.0546]
[1756822602307,3.2078,4344.1,4343.5,0.7966]
[1756822602907,3.2078,4343.6,4343.4,0.258]
[1756822603113,3.2078,4343.6,4342.5,4.2624]
[1756822603308,3.2078,4343.1,4342.5,0.7966]
[1756822603508,3.2078,4342.9,4342.2,0.7966]
[1756822603714,3.2078,4342.9,4342.3,0.7966]
[1756822604012,3.2078,4342.9,4342.2,0.3352]
[1756822604013,3.2078,4342.9,4342.4,0.258]
[1756822604514,0.8099,4343.6,4342.5,0.7966]
[1756822604715,0.8099,4343.6,4342.6,0.258]
[1756822604916,3.2078,4343.3,4342.5,0.7966]
[1756822605115,3.2078,4342.7,4341.9,33.9716]
[1756822605310,3.2078,4343.3,4342.3,0.7966]
[1756822606009,3.2078,4343.3,4342.5,0.7966]
[1756822606414,3.2078,4344.3,4343.2,3.2078]
[1756822606610,3.2078,4344.3,4343.3,0.258]
[1756822606918,3.2078,4343.7,4342.8,0.258]
[1756822607512,3.2078,4343.7,4342.9,0.7966]
[1756822608512,0.8099,4343.6,4342.5,0.258]
[1756822608810,3.2078,4343.1,4342.6,0.7966]
[1756822609017,3.4658,4343.7,4342.6,0.7966]
[1756822609217,3.2078,4343.1,4342.7,0.35984027]
[1756822609516,0.8099,4343.0,4342.8,0.35984027]
[1756822609706,3.2078,4343.1,4342.9,1.15644027]
[1756822609911,4.0177,4343.1,4343.0,0.35984027]
[1756822610419,3.2078,4343.6,4343.0,1.15644027]
[1756822610614,3.2078,4343.6,4343.1,1.15644027]
[1756822610819,0.258,4344.2,4343.2,0.35984027]
[1756822611117,0.258,4344.2,4343.3,1.15644027]
[1756822611317,3.2078,4344.3,4343.4,0.35984027]
[1756822611517,3.2078,4344.3,4343.5,0.35984027]
[1756822611713,3.2078,4345.0,4343.7,0.7966]
[1756822611920,3.2078,4345.0,4344.1,0.7966]
[1756822612122,3.2078,4345.0,4344.3,0.7966]
[1756822612321,3.2078,4345.0,4344.5,0.3352]
[1756822612518,3.2078,4345.0,4344.6,0.35984027]
[1756822612722,3.2078,4345.0,4344.7,0.35984027]
[1756822613024,3.2078,4345.0,4344.9,0.7966]
[1756822613319,3.2078,4345.0,4344.9,1.15644027]
[1756822613521,3.2078,4345.5,4344.9,1.15644027]
[1756822613720,3.2078,4345.5,4345.0,1.15644027]
[1756822613920,4.0177,4345.5,4345.1,0.35984027]
[1756822614218,4.0177,4345.5,4344.5,0.3352]
[1756822614219,3.2078,4345.5,4345.2,0.35984027]
[1756822614418,0.8099,4345.4,4344.4,0.7966]
[1756822614617,3.2078,4344.6,4343.4,3.2078]
[1756822614815,3.2078,4344.1,4343.7,0.7966]
[1756822615024,3.2078,4344.8,4343.7,0.7966]
[1756822615221,3.2078,4344.3,4343.8,0.258]
[1756822615420,3.2078,4344.3,4343.4,44.0078]
[1756822615625,3.2078,4344.3,4343.4,3.543]
[1756822615924,3.2078,4344.3,4343.5,1.0546]
[1756822616423,3.2078,4344.3,4343.5,0.7966]
[1756822616618,3.2078,4344.4,4343.5,0.7966]
[1756822616818,0.258,4344.7,4343.5,0.7966]
[1756822617027,3.2078,4344.4,4343.5,0.7966]
[1756822617321,3.2078,4343.9,4343.5,0.7966]
[1756822617520,3.2078,4343.9,4343.0,0.3352]
[1756822617727,0.7838,4344.2,4343.2,0.7966]
[1756822618123,3.2078,4343.9,4343.2,0.7966]
[1756822618320,3.2078,4344.6,4343.8,3.2078]
[1756822618526,3.2078,4344.6,4343.9,0.7966]
[1756822618922,3.2078,4344.1,4343.4,0.3352]
[1756822619422,0.5258,4344.6,4343.7,3.2078]
[1756822619625,0.258,4345.0,4343.8,0.7966]
[1756822619823,0.5258,4344.6,4343.2,4.0044]
[1756822620119,0.23013,4346.9,4343.2,4.0044]
[1756822620120,3.2078,4344.0,4343.2,4.0044]
[1756822620322,3.2078,4344.6,4343.4,0.7966]
[1756822620525,3.2078,4345.4,4344.0,0.3352]
[1756822620731,3.2078,4345.4,4344.7,0.7966]
[1756822620925,3.2078,4345.4,4344.8,0.258]
[1756822621627,3.2078,4345.4,4344.9,0.7966]
[1756822621828,0.258,4345.8,4345.1,0.7966]
[1756822622030,3.2078,4346.0,4345.1,3.2078]
[1756822622329,3.2078,4346.0,4345.2,0.7966]
[1756822622632,3.2078,4346.0,4345.3,0.258]
[1756822622825,3.2078,4346.0,4345.2,0.7966]
[1756822623021,3.2078,4345.4,4344.7,0.7966]
[1756822623325,3.9916,4345.4,4344.6,3.2078]
[1756822623830,3.2078,4345.4,4344.7,0.7966]
[1756822624328,3.2078,4346.4,4345.1,0.7966]
[1756822624527,3.2078,4346.4,4345.4,0.7966]
[1756822624719,3.2078,4346.4,4345.5,0.258]
[1756822625518,3.4658,4346.4,4345.4,0.7966]
[1756822625722,3.2078,4345.5,4345.1,0.257]
[1756822626023,3.2078,4346.1,4345.2,0.7966]
[1756822626326,3.2078,4346.1,4345.2,1.0536]
[1756822626527,3.2078,4345.6,4345.3,0.7966]
[1756822626728,3.2078,4345.6,4345.0,0.257]
[1756822627131,3.2078,4345.6,4344.8,0.7966]
[1756822627320,3.2078,4345.6,4344.9,0.257]
[1756822627520,3.2078,4345.1,4344.8,0.7966]
[1756822627731,0.7607,4345.0,4344.1,0.7966]
[1756822627932,3.7115,4344.6,4344.1,0.7966]
[1756822628328,0.7607,4344.5,4343.5,0.7966]
[1756822628533,3.2078,4343.6,4343.0,0.3352]
[1756822628732,3.2078,4343.6,4343.0,0.64931309]
[1756822628933,3.2078,4343.6,4343.1,0.8475]
[1756822629230,3.2078,4344.1,4343.1,0.8475]
[1756822629425,0.257,4344.3,4343.3,3.2078]
[1756822629621,3.2078,4344.7,4343.6,0.8475]
[1756822629825,0.4987,4345.4,4344.4,3.2078]
[1756822630024,3.2078,4345.6,4344.6,0.8475]
[1756822630428,3.2078,4345.6,4345.1,0.8475]
[1756822630629,3.2078,4345.6,4345.0,0.593]
[1756822630832,3.2078,4345.6,4344.9,3.2078]
[1756822631028,3.2078,4345.6,4345.0,0.336]
[1756822631330,33.152,4347.0,4345.1,0.8475]
[1756822631331,3.2078,4346.2,4345.1,0.8475]
[1756822631538,3.2078,4346.7,4345.9,0.8475]
[1756822631738,3.2078,4346.7,4346.0,0.257]
[1756822631933,3.2078,4347.2,4346.1,0.8475]
[1756822632138,3.2078,4347.2,4346.4,0.336]
[1756822632337,3.2078,4347.2,4346.4,0.257]
[1756822632638,3.2078,4346.5,4346.3,0.53310748]
[1756822632831,33.152,4348.4,4345.6,0.257]
[1756822632832,1.17474523,4346.4,4345.6,0.257]
[1756822633034,3.2078,4346.2,4345.6,0.257]
[1756822633232,0.2695,4348.2,4345.6,0.257]
[1756822633233,0.35954523,4346.1,4345.6,0.257]
[1756822633632,0.35959214,4346.0,4345.6,0.257]
[1756822633834,0.35959214,4345.9,4345.6,0.257]
[1756822634035,0.35959349,4345.8,4345.6,0.257]
[1756822634234,0.35959349,4345.7,4345.6,0.257]
[1756822634436,0.35959349,4345.7,4345.6,1.1045]
[1756822635327,0.35959349,4345.7,4345.6,5.1045]
[1756822635534,0.35959349,4345.7,4345.6,46.13462]
[1756822635735,3.2078,4347.4,4345.8,0.75013]
[1756822635940,3.2078,4347.4,4346.7,4.0553]
[1756822636236,0.2857,4350.0,4346.9,0.8475]
[1756822636237,3.2078,4348.0,4346.9,0.8475]
[1756822636741,3.2078,4348.0,4347.4,0.8475]
[1756822637038,3.2078,4348.0,4347.6,0.8475]
[1756822637239,3.2078,4348.0,4347.5,0.257]
[1756822637736,0.9852,4348.9,4347.8,3.2078]
[1756822638041,0.17,4348.9,4347.9,0.8475]
[1756822638236,1.49107687,4350.5,4347.6,0.336]
[1756822638237,3.2078,4349.8,4348.9,0.8475]
[1756822638439,4.023,4350.3,4349.0,0.257]
[1756822638633,4.023,4350.3,4349.2,3.2078]
[1756822638634,3.2078,4350.3,4349.2,3.2078]
[1756822638839,0.8152,4350.2,4348.7,3.2078]
[1756822639139,0.8152,4349.7,4348.8,0.257]
[1756822639334,0.8152,4349.7,4349.3,3.2078]
[1756822639538,4.023,4350.3,4349.4,0.257]
[1756822640140,1.23407687,4350.5,4349.9,3.2078]
[1756822640341,1.23407687,4350.5,4350.0,0.257]
[1756822640544,1.23407687,4350.5,4350.1,0.257]
[1756822640837,1.23407687,4350.5,4350.2,0.257]
[1756822641236,0.8152,4350.4,4350.3,3.4648]
[1756822641742,1.23407687,4350.5,4350.3,3.4648]
[1756822642535,1.23407687,4350.5,4350.3,3.9583]
[1756822642842,1.23407687,4350.5,4350.4,0.4935]
[1756822643045,1.23407687,4350.5,4350.3,3.4648]
[1756822644139,0.80594444,4351.2,4350.4,0.4935]
[1756822644340,0.32801197,4351.2,4351.0,3.2078]
[1756822644539,1.1441,4350.6,4350.5,36.3338]
[1756822644741,1.1441,4350.6,4350.5,33.382]
[1756822645035,1.1441,4350.6,4350.5,33.126]
[1756822645243,1.1441,4350.6,4350.5,33.382]
[1756822645942,1.1441,4350.6,4350.5,33.72076111]
[1756822646738,0.65691197,4351.2,4350.5,33.44487919]
[1756822647040,0.8152,4351.1,4350.6,0.33876111]
[1756822647239,0.65691197,4351.2,4350.5,33.10611808]
[1756822647240,0.65691197,4351.2,4350.7,0.33876111]
[1756822647436,0.32801197,4351.2,4350.8,0.59476111]
[1756822647737,0.32801197,4351.2,4350.9,0.33876111]
[1756822647738,0.8152,4351.0,4350.9,0.33876111]
[1756822648043,1.41737908,4351.0,4350.9,0.59476111]
[1756822648436,1.41735149,4351.0,4350.9,0.58316886]
[1756822649143,1.41735149,4351.0,4350.9,0.256]
[1756822649443,1.41735149,4351.0,4350.9,0.32683974]
[1756822649736,1.41735149,4351.0,4350.5,32.85011808]
[1756822650042,0.8152,4350.7,4350.6,0.32711109]
[1756822650244,1.08845149,4350.7,4350.5,0.255]
[1756822650442,1.08845149,4350.6,4350.5,0.255]
[1756822652137,1.17443611,4350.6,4350.5,0.255]
[1756822652332,0.35923611,4350.6,4350.5,0.58227345]
[1756822652539,0.35923611,4350.6,4350.5,4.58227345]
[1756822652839,1.1441,4352.4,4350.7,1.0342]
[1756822653041,1.1441,4352.4,4351.8,3.2078]
[1756822653042,0.8152,4351.9,4351.8,3.2078]
[1756822653239,0.94981462,4352.0,4351.8,3.79007345]
[1756822653438,0.8152,4353.2,4352.4,0.41351]
[1756822653642,0.8152,4353.4,4352.7,3.2078]
[1756822653837,0.8152,4353.4,4352.8,0.32727345]
[1756822654040,0.3289,4353.5,4352.9,0.32727345]
[1756822654235,0.3289,4353.5,4353.0,0.32727345]
[1756822654548,0.3289,4353.5,4353.1,0.32727345]
[1756822654746,0.8152,4353.4,4353.2,0.32727345]
[1756822655043,0.8152,4353.4,4353.3,0.58227345]
[1756822655237,0.3289,4353.5,4353.3,0.58227345]
[1756822655437,4.11358958,4353.6,4353.4,0.32727345]
[1756822655644,4.92878958,4353.6,4353.5,0.33530656]
[1756822657045,4.92878958,4353.6,4353.5,0.59030656]
[1756822658547,4.11358958,4353.6,4353.5,0.59030656]
[1756822658846,4.92878958,4353.6,4353.5,0.59030656]
[1756822659150,4.92878958,4353.6,4353.5,0.59042395]
[1756822659835,4.92878958,4353.6,4353.5,0.255]
[1756822660040,3.64397365,4353.6,4353.5,4.67181648]
[1756822660345,4.06408141,4354.6,4353.5,4.59041648]
[1756822660543,4.06408141,4354.6,4354.5,3.2078]
[1756822660743,4.06408141,4354.6,4354.5,3.79821648]
[1756822661045,4.06408141,4354.6,4354.5,44.59821648]
[1756822661649,3.83448223,4354.6,4354.5,44.59821648]
[1756822661842,0.3431,4355.5,4354.5,44.59821648]
[1756822662040,0.3431,4355.5,4354.6,0.59041648]
[1756822662246,0.8312,4355.3,4355.0,3.2078]
[1756822662446,0.8312,4355.3,4355.1,0.59041648]
[1756822662752,0.8312,4355.3,4355.2,0.33541648]
[1756822663151,0.1147,4355.8,4355.2,4.33541648]